Cogmind - Beta 16.1 @@@ ROGUE MODE // 2026.02.10 @ 21:09:12 Player: CocoLaNoix Result: Destroyed by S-27 Virus with Autogun Performance ------------- Evolutions (3) 1500 Regions Visited (10) 2000 Robots Destroyed (4) 20 Value Destroyed (115) 115 Prototype IDs (24) 480 Alien Tech Used (0) 0 Bonus (480) 480 TOTAL SCORE: 4595 Bonus ------- Follower Combat Kills 180 Aligned with FarCom 300 Cogmind --------- Core Integrity 0/700 Matter 290/300 Energy 59/100 System Corruption 2% Temperature Cool (0) Movement Core (100) Ox1 Location -7/Lower Caves Parts ------- > --- POWER (2) -------- (None) > --- PROPULSION (2) --- (None) > --- UTILITY (7) ------ Advanced Visual Processing Unit Improved Signal Interpreter Makeshift Hacking Suite Improved Trap Extractor (0/6) > --- WEAPON (2) ------- Makeshift Sword > --- INVENTORY (5) ---- Micro Nuclear Core Improved Power Shielding Peak State ------------ > --- POWER ------------ Micro Nuclear Core Micro Nuclear Core > --- PROPULSION ------- Backup Propulsion III Gravmag System > --- UTILITY ---------- Improved Signal Interpreter Improved Terrain Scanner Terrain Scan Processor Seismic Detector Target Analyzer PSU Rigger > --- WEAPON ----------- Greatsword > --- INVENTORY -------- Improved Power Shielding [Rating: 43] Favorites ----------- Power Backup Power III Engine Backup Power III Power Core Micro Nuclear Core Propulsion Backup Propulsion III Leg Aluminum Leg Hover Unit Backup Propulsion III Flight Unit Xenon Bombardment Thruster Utility Terrain Scan Processor Device PSU Rigger Storage Small Storage Unit Processor Terrain Scan Processor Hackware Makeshift Hacking Suite Protection Experimental Power Shielding Weapon Backup Laser III Energy Gun Backup Laser III Ballistic Gun Light Assault Rifle Slashing Weapon Greatsword Build | -11 -10 -10 -10 -9 -8 -7 -7 -7 -7 -7 ------- Run | Yrd Mat Min Exi Min Mat Fac Was Fac Low Low Slots Evolved 6 | . . . . . 4 2 . . . . Power 1 | . . . . . 1 . . . . . Propulsion . | . . . . . . . . . . . Utility 5 | . . . . . 3 2 . . . . Weapon . | . . . . . . . . . . . Parts Attached 41 | 5 6 1 . . 4 7 1 10 2 5 Power 6 | 1 1 1 . . . 1 . 2 . . Engine 4 | 1 1 1 . . . 1 . . . . Core 2 | . . . . . . . . 2 . . Reactor . | . . . . . . . . . . . Propulsion 7 | 2 2 . . . 1 1 . 1 . . Treads . | . . . . . . . . . . . Leg 3 | 2 . . . . 1 . . . . . Wheel . | . . . . . . . . . . . Hover 3 | . 2 . . . . . . 1 . . Flight 1 | . . . . . . 1 . . . . Utility 23 | . 3 . . . 3 4 1 6 2 4 Device 12 | . 1 . . . 3 3 . 3 1 1 Storage 1 | . 1 . . . . . . . . . Processor 5 | . 1 . . . . . . 2 1 1 Hackware 1 | . . . . . . . . . . 1 Protection 4 | . . . . . . 1 1 1 . 1 Artifact . | . . . . . . . . . . . Weapon 5 | 2 . . . . . 1 . 1 . 1 Energy Gun 1 | . . . . . . 1 . . . . Energy Cannon . | . . . . . . . . . . . Ballistic Gun 2 | 2 . . . . . . . . . . Ballistic Cannon . | . . . . . . . . . . . Launcher . | . . . . . . . . . . . Special Weapon . | . . . . . . . . . . . Impact Weapon . | . . . . . . . . . . . Slashing Weapon 2 | . . . . . . . . 1 . 1 Piercing Weapon . | . . . . . . . . . . . Special Melee Weapon . | . . . . . . . . . . . Unidentified Prototypes 1 | . . . . . . . 1 . . . Parts Lost 19 | . 1 . . . 6 . 1 1 4 6 Power 4 | . 1 . . . 1 . . 1 . 1 Propulsion 6 | . . . . . 3 . 1 . . 2 Utility 8 | . . . . . 2 . . . 3 3 Weapon 1 | . . . . . . . . . 1 . Highest Loss Streak 6 | . 1 . . . 5 . 1 1 2 6 To Critical Strikes 1 | . 1 . . . . . . . . . Average Backups 2 | . 1 2 4 5 3 2 1 1 2 2 Power . | . . . . . . . . . 1 1 Propulsion . | . . . . . . . . . . . Utility 1 | . 1 2 4 5 3 2 1 1 1 1 Weapon . | . . . . . . . . . . . Tool/Special . | . . . . . . . . . . . Unused Backups 2 | . . 1 . . . 1 . . . . Power . | . . . . . . . . . . . Propulsion . | . . . . . . . . . . . Utility 2 | . . 1 . . . 1 . . . . Weapon . | . . . . . . . . . . . Tool/Special . | . . . . . . . . . . . Average Slot Usage (%) 65 | . 89 87 71 71 58 34 53 70 70 64 Engine 7 | . 12 14 14 14 7 3 10 6 . . Core 1 | . . . . . . . . 2 7 6 Hover 15 | . 19 28 28 28 10 . 6 15 15 12 Device 14 | . . . . . 22 15 17 22 24 17 Storage 4 | . 11 14 14 14 9 1 . . . . Processor 12 | . 8 14 14 14 9 7 7 12 18 17 Energy Gun 2 | . . . . . . 1 8 5 . . Ballistic Gun 2 | . 28 16 . . . . . . . . Slashing Weapon 1 | . . . . . . . . 4 3 3 Peak Build Rating 43 | 5 10 12 11 12 24 22 31 43 42 36 Average Rating 22 | 3 8 10 10 11 20 17 25 33 33 27 On Entrance 16 | . 5 10 10 11 12 11 21 31 42 25 Avg Prop Armor Cover (%) . | . . . . . . . . . . . Naked Turns . | . . . . . . . . . . . Heaviest Build 19 | 6 12 17 14 14 19 9 11 16 16 13 Greatest Support 20 | 20 20 14 14 14 17 6 16 17 17 17 Greatest Overweight (x) 6 | . 1 1 . . 6 2 3 . . 2 Average Overweight (x) . | . . . . . 1 . . . . . Largest Inventory Capacity 8 | 5 8 8 8 8 8 8 5 5 5 5 Average Capacity 6 | 5 7 8 8 8 8 5 5 5 5 5 Most Carried 7 | 1 2 3 6 7 6 4 1 2 2 2 Average Carried 2 | . 1 2 4 6 4 2 1 1 2 2 Final Capacity 8 | 5 8 8 8 8 8 5 5 5 5 5 Final Carried 7 | 1 2 3 6 7 4 1 1 2 2 2 Class Distribution -------------------- 64% | Mutant 30% | Scout 3% | Derelict-Mutant Dominant Class ---------------- Mutant | -10/Materials Mutant | -10/Mines Mutant | -10/Exiles Mutant | -9/Mines Mutant | -8/Materials Mutant | -7/Factory Scout | -7/Waste Scout | -7/Factory Mutant | -7/Lower Caves Mutant | -7/Lower Caves Resources | -11 -10 -10 -10 -9 -8 -7 -7 -7 -7 -7 ----------- Run | Yrd Mat Min Exi Min Mat Fac Was Fac Low Low Matter Collected 600 | 266 . . . 69 . . 98 93 32 42 Remotely 10 | . . . . . . . . 10 . . Salvage Created 165 | 38 . . . . . . . 127 . . Parts 13 | 3 . . . . . . . 10 . . Haulers Intercepted . | . . . . . . . . . . . Recyclers Shooed . | . . . . . . . . . . . Parts Field Recycled . | . . . . . . . . . . . Retrieved Matter . | . . . . . . . . . . . Parts Self-Destructed 6 | . . . . . . . . . 1 5 Prevented 5 | . . . . . . . . . 4 1 Parts Restored . | . . . . . . . . . . . Kills | -11 -10 -10 -10 -9 -8 -7 -7 -7 -7 -7 ------- Run | Yrd Mat Min Exi Min Mat Fac Was Fac Low Low Combat Hostiles Destroyed 2 | 1 . . . . . . . 1 . . Melee 1 | . . . . . . . . 1 . . Guns 1 | 1 . . . . . . . . . . Classes Destroyed 4 | 1 . . . . . . . 3 . . Builder 1 | . . . . . . . . 1 . . Recycler 1 | . . . . . . . . 1 . . Grunt 1 | 1 . . . . . . . . . . Programmer 1 | . . . . . . . . 1 . . Best Kill Streak 1 | 1 . . . . . . . 1 . . Combat Bots Only 1 | 1 . . . . . . . 1 . . Max Kills in Single Turn 1 | 1 . . . . . . . 1 . . Gunslinging . | . . . . . . . . . . . Exploded . | . . . . . . . . . . . Melee 1 | . . . . . . . . 1 . . Uniques/NPCs Destroyed . | . . . . . . . . . . . Combat | -11 -10 -10 -10 -9 -8 -7 -7 -7 -7 -7 -------- Run | Yrd Mat Min Exi Min Mat Fac Was Fac Low Low Hostile Shots Fired 287 | 6 32 . . . 121 . 1 28 33 66 Missed 114 | . 16 . . . 47 . . 12 14 25 Hits 173 | 6 16 . . . 74 . 1 16 19 41 Melee 3 | . . . . . . . 1 . . 2 Projectile 170 | 6 16 . . . 74 . . 16 19 39 Critical Strikes 5 | . 1 . . . 2 . . . 2 . Damage Taken 2203 | 67 142 . . . 713 1 93 241 367 579 Core 999 | 11 32 . . . 245 . 93 74 150 394 Absorbed by Shields . | . . . . . . . . . . . Core Remaining (%) 77 | 95 . . . 82 55 . . . . . Volleys Fired 14 | 4 1 1 . . . . 6 2 . . Largest 2 | 2 2 2 . . . . 2 2 . . Hottest 80 | 40 40 40 . . . . 80 80 . . Shots Fired 28 | 8 2 2 . . . . 12 4 . . Gun 28 | 8 2 2 . . . . 12 4 . . Cannon . | . . . . . . . . . . . Launcher . | . . . . . . . . . . . Special . | . . . . . . . . . . . Kinetic 12 | 8 2 2 . . . . . . . . Thermal 16 | . . . . . . . 12 4 . . Explosive . | . . . . . . . . . . . Electromagnetic . | . . . . . . . . . . . Robot Hit Streak 4 | 3 1 . . . . . 4 3 . . Robot Miss Streak 3 | 1 1 2 . . . . 3 1 . . Penetration Max . | . . . . . . . . . . . Secondary Targets . | . . . . . . . . . . . Shots Hit Robots 20 | 6 1 . . . . . 7 6 . . Core Hits 6 | 2 . . . . . . 1 3 . . Critical Kills . | . . . . . . . . . . . Critical Parts Destroyed . | . . . . . . . . . . . Critical Strikes . | . . . . . . . . . . . Melee Attacks 4 | . . . . . . . . 4 . . Impact . | . . . . . . . . . . . Slashing 4 | . . . . . . . . 4 . . Piercing . | . . . . . . . . . . . Sneak Attacks 1 | . . . . . . . . 1 . . Combat Hostiles . | . . . . . . . . . . . Follow-up Attacks . | . . . . . . . . . . . Damage Inflicted 446 | 66 16 . . . . 3 105 256 . . Guns 228 | 66 6 . . . . . 105 51 . . Cannons . | . . . . . . . . . . . Explosions . | . . . . . . . . . . . Melee 205 | . . . . . . . . 205 . . Ramming 13 | . 10 . . . . 3 . . . . Kinetic 72 | 66 6 . . . . . . . . . Thermal 156 | . . . . . . . 105 51 . . Explosive . | . . . . . . . . . . . Electromagnetic . | . . . . . . . . . . . Impact . | . . . . . . . . . . . Slashing 205 | . . . . . . . . 205 . . Piercing . | . . . . . . . . . . . Highest Corruption 2 | . . . . . . 2 2 2 2 2 Average Corruption 2 | . . . . . . 2 2 2 2 2 Corruption Purged . | . . . . . . . . . . . Corruption Blocked . | . . . . . . . . . . . Effects 12 | . . . . . . . 3 7 1 1 Message Errors 1 | . . . . . . . 1 . . . Matter Fused 6 | . . . . . . . 1 4 1 . Heat Flow Errors 2 | . . . . . . . 1 . . 1 Data Loss (minor) 2 | . . . . . . . . 2 . . Alerts 1 | . . . . . . . . 1 . . Overload Shots . | . . . . . . . . . . . Overflow Damage 67 | . . . . . . . . 67 . . Projectiles . | . . . . . . . . . . . Explosions . | . . . . . . . . . . . Melee 67 | . . . . . . . . 67 . . Knockbacks . | . . . . . . . . . . . Impact . | . . . . . . . . . . . Kinetic . | . . . . . . . . . . . Secondary . | . . . . . . . . . . . Self-Inflicted Damage 6 | . 5 . . . . 1 . . . . Shots . | . . . . . . . . . . . Rammed 2 | . 1 . . . . 1 . . . . Targets Rammed 2 | . 1 . . . . 1 . . . . Kicked . | . . . . . . . . . . . Crushed . | . . . . . . . . . . . Highest Temperature 204 | 6 6 . . . . . 75 15 . 204 Average Temperature 34 | 6 5 . . . . . 16 6 . 105 Received Heat Transfer 273 | 36 6 . . . 117 . . 54 60 . Siege Activations . | . . . . . . . . . . . Martial Activations . | . . . . . . . . . . . Shielding Activations . | . . . . . . . . . . . Robots Disrupted . | . . . . . . . . . . . Combat Hostiles . | . . . . . . . . . . . Robots Corrupted . | . . . . . . . . . . . Combat Hostiles . | . . . . . . . . . . . Parts Fried . | . . . . . . . . . . . Impact Corruptions . | . . . . . . . . . . . Robots Melted . | . . . . . . . . . . . Combat Hostiles . | . . . . . . . . . . . Parts Melted . | . . . . . . . . . . . Heat Transferred 444 | . . . . . . . 296 148 . . Parts Sabotaged . | . . . . . . . . . . . Parts Stolen 1 | . . . . . . . . . . 1 Parts Stripped . | . . . . . . . . . . . Power Chain Reactions . | . . . . . . . . . . . Alert | -11 -10 -10 -10 -9 -8 -7 -7 -7 -7 -7 ------- Run | Yrd Mat Min Exi Min Mat Fac Was Fac Low Low Maximum Alert Level . | . . . . . . . . . . . Low Security (%) 100 | 100 100 100 . 100 100 100 100 100 . . Level 1 . | . . . . . . . . . . . Level 2 . | . . . . . . . . . . . Level 3 . | . . . . . . . . . . . Level 4 . | . . . . . . . . . . . Level 5 . | . . . . . . . . . . . High Security . | . . . . . . . . . . . Max Security . | . . . . . . . . . . . Peak Influence 45 | 20 15 1 . . 15 6 34 45 . . Initial 13 | . 13 1 . . . 6 . 9 . . Average 4 | 2 5 . . . . . 7 6 . . Influence Increases 323 | 20 15 . . . 20 . 61 147 . 60 Destroy 0b10 Robot/C 40 | 20 . . . . . . . 20 . . Destroy 0b10 Robot/NC 20 | . . . . . . . . 20 . . Destroy Leader 10 | . . . . . . . . 10 . . Successful Hack 5 | . . . . . 5 . . . . . Disable Machine 15 | . . . . . . . . 15 . . Destroy Structure 83 | . . . . . . . 61 22 . . Lose Combat Pursuer 150 | . 15 . . . 15 . . 60 . 60 Influence Decreases 293 | . 30 5 . . 5 15 47 161 . 30 Entered New Map 25 | . 7 4 . . . 9 . 5 . . Time Decay 234 | . 23 1 . . 5 6 47 142 . 10 Lost Part 20 | . . . . . . . . . . 20 Lost Ally 14 | . . . . . . . . 14 . . Squads Dispatched 6 | . . 1 . . 1 1 . 3 . . Investigation 2 | . . 1 . . . 1 . . . . Extermination 1 | . . . . . . . . 1 . . Reinforcement 3 | . . . . . 1 . . 2 . . Assault . | . . . . . . . . . . . Garrison . | . . . . . . . . . . . Intercept . | . . . . . . . . . . . Searches Triggered . | . . . . . . . . . . . Construction Impeded . | . . . . . . . . . . . Haulers Reinforced . | . . . . . . . . . . . Active Scanning Responses . | . . . . . . . . . . . Cargo Convoy Interrupts . | . . . . . . . . . . . Stealth | -11 -10 -10 -10 -9 -8 -7 -7 -7 -7 -7 --------- Run | Yrd Mat Min Exi Min Mat Fac Was Fac Low Low Distress Signals 1 | . . . . . 1 . . . . . Communications Jammed . | . . . . . . . . . . . Distress Signals . | . . . . . . . . . . . Times Spotted 54 | 1 8 . . 2 17 1 8 7 1 9 Peak Tracking Total 14 | 1 7 . . 2 14 1 5 3 1 4 Tactical Retreats 6 | . 1 . . . 1 . 1 2 . 1 Traps | -11 -10 -10 -10 -9 -8 -7 -7 -7 -7 -7 ------- Run | Yrd Mat Min Exi Min Mat Fac Was Fac Low Low Traps Triggered 3 | . . . . . . 1 . 2 . . Indirectly . | . . . . . . . . . . . Trap Hack Attempts . | . . . . . . . . . . . Triggered . | . . . . . . . . . . . Disarmed . | . . . . . . . . . . . Reprogrammed . | . . . . . . . . . . . Reused . | . . . . . . . . . . . Traps Extracted . | . . . . . . . . . . . Installed . | . . . . . . . . . . . Triggered . | . . . . . . . . . . . Machines | -11 -10 -10 -10 -9 -8 -7 -7 -7 -7 -7 ---------- Run | Yrd Mat Min Exi Min Mat Fac Was Fac Low Low Machines Disabled 1 | . . . . . . . . 1 . . Max in Single Turn 1 | . . . . . . . . 1 . . Machines Repaired . | . . . . . . . . . . . Machines Dismantled . | . . . . . . . . . . . Machines Sabotaged . | . . . . . . . . . . . Overloaded Fab Kills . | . . . . . . . . . . . Hacking | -11 -10 -10 -10 -9 -8 -7 -7 -7 -7 -7 --------- Run | Yrd Mat Min Exi Min Mat Fac Was Fac Low Low Machines Accessed 10 | . . 1 5 . 2 1 . 1 . . Terminals 3 | . . . . . 2 1 . . . . Fabricators 1 | . . . . . . . . 1 . . Repair Stations . | . . . . . . . . . . . Recycling Units . | . . . . . . . . . . . Scanalyzers . | . . . . . . . . . . . Garrison Access . | . . . . . . . . . . . Total Hacks 45 | . . 1 34 . 5 4 . 1 . . Successful 41 | . . 1 34 . 4 1 . 1 . . Failed 4 | . . . . . 1 3 . . . . Catastrophic . | . . . . . . . . . . . Database Lockouts . | . . . . . . . . . . . Manual 1 | . . . 1 . . . . . . . Terminals 9 | . . . . . 5 4 . . . . Fabricators 1 | . . . . . . . . 1 . . Repair Stations . | . . . . . . . . . . . Recycling Units . | . . . . . . . . . . . Scanalyzers . | . . . . . . . . . . . Garrison Access . | . . . . . . . . . . . Terminal Hacks 40 | . . 1 34 . 4 1 . . . . Record 34 | . . . 33 . . 1 . . . . Open Door 1 | . . 1 . . . . . . . . Emergency Access Points 1 | . . . . . 1 . . . . . Terminal Index 1 | . . . . . 1 . . . . . Zone Layout 2 | . . . . . 2 . . . . . Proto ID Catalog 1 | . . . 1 . . . . . . . Fabricator Hacks 1 | . . . . . . . . 1 . . Network Status 1 | . . . . . . . . 1 . . Repair Station Hacks . | . . . . . . . . . . . Recycling Unit Hacks . | . . . . . . . . . . . Scanalyzer . | . . . . . . . . . . . Garrison Access Hacks . | . . . . . . . . . . . Unauthorized Hacks . | . . . . . . . . . . . Terminals . | . . . . . . . . . . . Fabricators . | . . . . . . . . . . . Repair Stations . | . . . . . . . . . . . Recycling Units . | . . . . . . . . . . . Scanalyzers . | . . . . . . . . . . . Garrison Access . | . . . . . . . . . . . Data Cores Recovered 1 | . . . . . . . . 1 . . Used . | . . . . . . . . . . . Hacking Detections 2 | . . . . . 1 1 . . . . Full Trace Events 1 | . . . . . . 1 . . . . Feedback Events . | . . . . . . . . . . . Feedback Blocked . | . . . . . . . . . . . Robot Schematics Acquired . | . . . . . . . . . . . Robots Built . | . . . . . . . . . . . Authchips . | . . . . . . . . . . . Time . | . . . . . . . . . . . Total Robot Build Rating . | . . . . . . . . . . . Part Schematics Acquired . | . . . . . . . . . . . Parts Built . | . . . . . . . . . . . Authchips . | . . . . . . . . . . . Time . | . . . . . . . . . . . Total Part Build Rating . | . . . . . . . . . . . Part Studies Acquired . | . . . . . . . . . . . Parts Repaired . | . . . . . . . . . . . Time . | . . . . . . . . . . . Parts Recycled . | . . . . . . . . . . . Recycled Matter . | . . . . . . . . . . . Retrieved Matter . | . . . . . . . . . . . Retrieved Components . | . . . . . . . . . . . Parts Scanalyzed . | . . . . . . . . . . . Part Schematics Acquired . | . . . . . . . . . . . Parts Damaged . | . . . . . . . . . . . Bothacking | -11 -10 -10 -10 -9 -8 -7 -7 -7 -7 -7 ------------ Run | Yrd Mat Min Exi Min Mat Fac Was Fac Low Low Used RIF Installer . | . . . . . . . . . . . Robots Hacked . | . . . . . . . . . . . Non-combat . | . . . . . . . . . . . Combat . | . . . . . . . . . . . Robot Hacks Applied . | . . . . . . . . . . . Relay Couplers Released . | . . . . . . . . . . . Fabnet Peak Effective % . | . . . . . . . . . . . Robots Rewired . | . . . . . . . . . . . Allies Hacked . | . . . . . . . . . . . Hacks Repelled . | . . . . . . . . . . . Allies | -11 -10 -10 -10 -9 -8 -7 -7 -7 -7 -7 -------- Run | Yrd Mat Min Exi Min Mat Fac Was Fac Low Low Total Allies 18 | . . . . . . . 18 . . . Largest Group 18 | . . . . . . . 18 2 . . Highest-Rated Group 434 | . . . . . . . 434 70 . . Highest-Rated Ally 35 | . . . . . . . 35 35 . . Total Orders . | . . . . . . . . . . . Ally Attacks 123 | . . . . . . . 114 9 . . Total Damage 4336 | . . . . . . . 4098 238 . . Kills 14 | . . . . . . . 12 2 . . Allies Corrupted . | . . . . . . . . . . . Allies Melted . | . . . . . . . . . . . Intel | -11 -10 -10 -10 -9 -8 -7 -7 -7 -7 -7 ------- Run | Yrd Mat Min Exi Min Mat Fac Was Fac Low Low Active Infowar (turns) 1509 | . . . . . 162 130 209 621 209 178 Optics 108 | . . . . . . . . . . 108 Sensors 271 | . . . . . . . . 51 209 11 Terrain 966 | . . . . . . 130 209 621 6 . Structural 172 | . . . . . . 111 61 . . . Traps 162 | . . . . . 162 . . . . . Seismic 868 | . . . . . . . . 510 209 149 Robot Analysis Total . | . . . . . . . . . . . Derelict Logs Recovered 4 | . . 1 . 1 . . . . 2 . Drone Launches . | . . . . . . . . . . . Drone Recoveries . | . . . . . . . . . . . Exploration | -11 -10 -10 -10 -9 -8 -7 -7 -7 -7 -7 ------------- Run | Yrd Mat Min Exi Min Mat Fac Was Fac Low Low Turns Passed 2432 | 92 97 112 412 73 185 244 209 621 209 178 Spaces Moved 3095 | 71 123 155 733 129 127 264 204 749 311 229 Core 182 | 20 . . . . 15 82 50 . . 15 Treads . | . . . . . . . . . . . Legs 84 | 51 16 . . . 17 . . . . . Wheels . | . . . . . . . . . . . Hover 2598 | . 107 155 733 129 95 . 105 749 311 214 Flight 231 | . . . . . . 182 49 . . . Fastest Speed 40 | 50 56 56 56 56 116 40 50 66 66 50 Average Speed 72 | 100 64 65 56 56 142 87 89 73 66 73 Slowest Speed 350 | 120 120 116 56 56 350 150 200 76 66 160 Overloaded Moves . | . . . . . . . . . . . Propulsion Burnouts . | . . . . . . . . . . . Robots Hopped . | . . . . . . . . . . . Potential Cave-ins . | . . . . . . . . . . . Cave-ins Triggered . | . . . . . . . . . . . Exploration Rate (%) 39 | 9 29 35 94 50 16 8 82 21 48 44 Regions Visited 10 Branch Regions 5 Pre-discovered Areas 1 | . . . 1 . . . . . . . Known Exits Taken 3 | . . . . . 1 . . 1 1 . Unknown Exits Taken 5 | 1 1 1 1 1 . . . . . . Scrap Searched 7 | . . . . 2 . . . . 2 3 Spaces Dug . | . . . . . . . . . . . Terrain Destroyed . | . . . . . . . . . . . Melee . | . . . . . . . . . . . Projectile . | . . . . . . . . . . . AOE . | . . . . . . . . . . . Terrain Rammed . | . . . . . . . . . . . Walls Destroyed . | . . . . . . . . . . . Machines Disabled . | . . . . . . . . . . . Actions | -11 -10 -10 -10 -9 -8 -7 -7 -7 -7 -7 --------- Run | Yrd Mat Min Exi Min Mat Fac Was Fac Low Low Total 3230 | 82 137 165 734 129 130 277 219 807 313 237 Wait 17 | . . . . . . . 8 9 . . Move 3086 | 70 122 154 732 128 126 264 203 748 310 229 Hop . | . . . . . . . . . . . Pick Up 15 | 2 5 4 2 1 . . . 1 . . Fast Attach 30 | 5 1 . . . 1 5 1 9 2 6 Attach 11 | . 4 1 . . 3 2 . 1 . . Detach 2 | . . . . . . 1 . 1 . . Swap 1 | . 1 . . . . . . . . . Drop 22 | 1 2 5 . . . 4 1 6 1 2 Fire 14 | 4 1 1 . . . . 6 2 . . Melee 4 | . . . . . . . . 4 . . Ram 2 | . 1 . . . . 1 . . . . Kick . | . . . . . . . . . . . Crush . | . . . . . . . . . . . Escape Stasis 26 | . . . . . . . . 26 . . Rewire . | . . . . . . . . . . . Trap . | . . . . . . . . . . . Miscellaneous . | . . . . . . . . . . . Route ------- -11/Scrapyard -10/Materials (discovered 2 exits: *Min x2) -10/Mines (discovered 2 exits: Mat / *Exi) -10/Exiles (discovered 2 exits: [*Min x2]) -9/Mines (discovered 2 exits: *Mat x2) -8/Materials (discovered 2 exits: *Fac x2) -7/Factory -7/Waste -7/Factory -7/Lower Caves -7/Lower Caves History --------- Turn | Location | Event 2 | -11/Scrapyard | Met Revision 17 62 | -11/Scrapyard | Discovered new exit (range 8) 93 | -11/Scrapyard | Entered Materials 93 | -10/Materials | Discovered new exit (range 9) 167 | -10/Materials | Discovered new exit (range 8) 190 | -10/Materials | Entered Mines 194 | -10/Mines | Identified exit to Materials 208 | -10/Mines | Met a Derelict bent on vengeance 209 | -10/Mines | Met a Derelict shopkeep closing up shop 299 | -10/Mines | Deemed a non-threat by the Exiles lab entrance 299 | -10/Mines | Discovered new exit (range 5) 302 | -10/Mines | Entered Exiles 310 | -10/Exiles | Build established: Mutant 310 | -10/Exiles | Discovered new exit (range 15) 326 | -10/Exiles | Met 8R-AWN 335 | -10/Exiles | Met EX-HEX 383 | -10/Exiles | Met EX-DEC 402 | -10/Exiles | Visited The Gauntlet 484 | -10/Exiles | Learned location of Zion (-7) 506 | -10/Exiles | Discovered new exit (range 14) 553 | -10/Exiles | Met EX-BIN 562 | -10/Exiles | Aligned with FarCom system 563 | -10/Exiles | Given EX-Vault access code 577 | -10/Exiles | Opened EX-Vault 582 | -10/Exiles | Found Prototype Device 584 | -10/Exiles | Identified PSU Rigger 604 | -10/Exiles | Warned to stay clear of 0b10 Research branches 714 | -10/Exiles | Left Exiles lab with PSU Rigger 714 | -10/Exiles | Entered Mines 724 | -9/Mines | Discovered new exit (range 12) 782 | -9/Mines | Discovered new exit (range 13) 783 | -9/Mines | Learned location of 1 exit from Materials 787 | -9/Mines | Entered Materials 787 | -8/Materials | Evolved 4 slots: Power x1, Utility x3 788 | -8/Materials | Identified exit to Factory 957 | -8/Materials | Discovered exit to Factory (range 12) 972 | -8/Materials | Entered Factory 972 | -7/Factory | Evolved 2 slots: Utility x2 999 | -7/Factory | Lost 5 parts (1p2n2u) 1216 | -7/Factory | Sucked down chute 1216 | -7/Factory | Entered Waste 1240 | -7/Waste | Spotted C-40 Crusher 1251 | -7/Waste | Spotted C-40 Crusher 1252 | -7/Waste | Spotted C-40 Crusher 1265 | -7/Waste | Spotted C-40 Crusher 1277 | -7/Waste | Crushed by Compactor (1 part destroyed, 2 dropped) 1281 | -7/Waste | Warlord forces began an assault 1283 | -7/Waste | Allies destroyed C-40 Crusher 1287 | -7/Waste | Allies destroyed C-40 Crusher 1331 | -7/Waste | Allies destroyed C-40 Crusher 1337 | -7/Waste | Allies destroyed C-40 Crusher 1366 | -7/Waste | Spotted C-40 Crusher 1368 | -7/Waste | Lost 6 allies 1373 | -7/Waste | Spotted C-40 Crusher 1376 | -7/Waste | Allies destroyed C-40 Crusher 1383 | -7/Waste | Allies destroyed C-40 Crusher 1413 | -7/Waste | Discovered new exit (range 16) 1425 | -7/Waste | Entered Factory 1425 | -7/Factory | Accompanied by 2 allies 1622 | -7/Factory | Build established: Scout 1810 | -7/Factory | Discovered new exit (range 16) 2042 | -7/Factory | Identified exit to Lower Caves 2046 | -7/Factory | Entered Lower Caves 2048 | -7/Lower Caves | Spotted B-75 Beast 2074 | -7/Lower Caves | Learned Factory garrison access intel 2166 | -7/Lower Caves | Learned Factory emergency access door positions 2238 | -7/Lower Caves | Discovered new exit (range 15) 2253 | -7/Lower Caves | Identified exit to Lower Caves 2255 | -7/Lower Caves | Entered another Lower Caves area 2356 | -7/Lower Caves | Encountered a Warlord checkpoint 2398 | -7/Lower Caves | Core integrity fell below 50% 2423 | -7/Lower Caves | Core integrity fell below 20% 2433 | -7/Lower Caves | Destroyed by S-27 Virus with Autogun Last Messages --------------- Found Hvy. Laser. Found 55 Matter. Acquired 20 matter. Acquired Mak. Hacking Suite. Acquired Adv. Visual Processing Unit. System corrupted: Heat flow error (+229). Searching scrap... Found Flak Gun. Found Sml. Storage Unit. Found 42 Matter. KZ-WPL(M): "WARLORD FOREVER!" XX-SE1(k) breaks down the debris. Reaction Control System destroyed. Gravmag System destroyed. Target Analyzer destroyed. Dropped Mak. Sword. Seismic Detector destroyed. Backup Propulsion III destroyed. Mic. Nuclear Core destroyed. Acquired Mak. Sword. Map ----- +----------------------------------------------------+ | ?????????????????????# ## ## #????? | | ?????????????????????# ## #????? | | ?????????????????????# ####?# #????? | | ?????????????????????# #????? #????? | | ?????????????????????# ##?????# #????? | | ?????????????????????# ## #??????? #????? | | ?????????????????????###??## #??????? #???? | | ???????????????????????????# #??????? ###???? | | ??????????????????????????## #?###???? #?????? | | ??????????????????????##### #### ##???????????? | | ?????????????????###### ## ##?# #???????????? | | ?????????????????# ##??# #???????????? | | ?????????????????# ##???# #????????????? | | ?????????????????## #????# ##???????????? | | ??????????????????# #????# #???????????? | | ??????????????????# #????# #???????????? | | ??????????????????## ##????# #???????????? | | ???????????????????# ##???### #???????????? | | ???????????????????# ##????# ##??????????? | | ???????????????????## #######?# #??????????? | | ????????????????????# #??# ### ##??????????? | | ????????????????????# #### s ##???????????? | | ????????????????????# ### ss ##????????????? | | ????????????????????# ## s##?????????????? | | ????????????????????### ##?????????????? | | ??????????????????????## @ #?????????????? | | ???????????????????????# #?????????? | | ???????????????????????## ##?????????? | | ????????????????????????# #??????????? | | ????????????????????????# #??????????? | | ????????????????????????# ????????? | | ????????????????????????# ########???????? | | ???????????????????????? ##??????????????? | | ??????????????????????? ##???????????????? | | ?????????????????????? #????????????????? | | ????????????????????? ????????????????? | | ????????????????????? #???????????????? | | ?????????????????????? ##???????????????? | | ????????????????????? ##????????????????? | | ????????????????????? #?????????????????? | | ????????????????????? ?????????????????? | | ????????????????????? ?????????????????? | | ?????????????????????? ????????????????? | | ???????????????????????? ???????????????????? | | ???????????????????????? ?????????????????????? | | ?????????????????????????????????????????????????? | | ?????????????????????????????????????????????????? | | ?????????????????????????????????????????????????? | | ?????????????????????????????????????????????????? | | ?????????????????????????????????????????????????? | +----------------------------------------------------+ Best States ------------- Heat Dissipation 34 Energy Generation 17 Energy Capacity 275 Matter Stores 300 Matter Capacity 300 Sight Range 20 Robot Scan Range 15 Terrain Scan Range 16 Terrain Scan Density 110 Evasion (%) 62 Target Analysis 5 Offensive Hacking 11 Trap Extractor Capacity 6 Item Schematics ----------------- None Robot Schematics ------------------ None Fabricated ------------ Nothing Repaired ---------- Nothing Studied --------- None Alien Tech Used ----------------- None Achievements -------------- I Have A Map? I Spy Sixth Sense The More The Merrier Tourist Challenges ------------ None Game ------ Seed ShiftPhasePower Manual? 0 Play Time 01:03:52 Cumulative 2.6 hours Start 2026.02.10 @ 18:22:28 End 2026.02.10 @ 21:09:12 Sessions 1 Manual Loads 0 Difficulty Rogue Special Mode None Game No. 2 Rogue 2 Adventurer 0 Explorer 0 Win Type - Total 0 Types 0/0/0/0/0/0/0/0/0/0 Lore% 4 Gallery% 7 Achievement% 6 Wizard Run 0 Options --------- Layout 1 ASCII 0 Keyboard 0 Movement Mouse Keybinds 0 Fullscreen 1 Font 32/SmallcapsGlow Map View 50x35 Zoom Use 0% Tactical HUD 0 Map Filters NONE Filters NONE Steam 1 RUN: bccf0fc5-d654-4878-8671-cc09f2d0663c